[Event "Betsys MČR v online bleskovém šachu 2021"]
[Site "Chess.com"]
[Date "2021.04.17"]
[Round "2"]
[White "Newyork6"]
[Black "feela1"]
[Result "0-1"]
[WhiteElo "333"]
[BlackElo "1505"]
[TimeControl "180+1"]
[EndTime "9:12:53 PDT"]
[Termination "Uživatel feela1 zvítězil matem"]

1. Nf3 {[%clk 0:03:00.9]} 1... Nc6 {[%clk 0:02:56]} 2. g3 {[%clk 0:02:59.2]}
2... e5 {[%clk 0:02:55]} 3. Bg2 {[%clk 0:02:57.5]} 3... d5 {[%clk 0:02:53.1]} 4.
O-O {[%clk 0:02:56.3]} 4... Be6 {[%clk 0:02:48.5]} 5. Nxe5 {[%clk 0:02:50.5]}
5... Nxe5 {[%clk 0:02:46.7]} 6. e3 {[%clk 0:02:49.1]} 6... Qd7 {[%clk
0:02:41.3]} 7. g4 {[%clk 0:02:49.4]} 7... Bxg4 {[%clk 0:02:37.6]} 8. h3 {[%clk
0:02:48.2]} 8... Bxh3 {[%clk 0:02:34.2]} 9. Bxh3 {[%clk 0:02:46.2]} 9... Qxh3
{[%clk 0:02:33.2]} 10. Re1 {[%clk 0:02:42.5]} 10... Nf3+ {[%clk 0:02:31.3]} 11.
Qxf3 {[%clk 0:02:20.7]} 11... Qxf3 {[%clk 0:02:30.8]} 12. c3 {[%clk 0:02:15.1]}
12... O-O-O {[%clk 0:02:29.9]} 13. b3 {[%clk 0:02:12.1]} 13... Bd6 {[%clk
0:02:27.8]} 14. a3 {[%clk 0:02:10]} 14... Qg4+ {[%clk 0:02:26.4]} 15. Kf1 {[%clk
0:02:02.7]} 15... Nf6 {[%clk 0:02:25.6]} 16. Re2 {[%clk 0:02:00.5]} 16... Bh2
{[%clk 0:02:22.7]} 17. Bb2 {[%clk 0:01:57.5]} 17... Qg1# {[%clk 0:02:21.9]} 0-1

[Event "Betsys MČR v online bleskovém šachu 2021"]
[Site "Chess.com"]
[Date "2021.04.17"]
[Round "2"]
[White "YawningBagel"]
[Black "sachistamartin"]
[Result "1-0"]
[WhiteElo "1931"]
[BlackElo "1448"]
[TimeControl "180+1"]
[EndTime "9:13:09 PDT"]
[Termination "Uživatel YawningBagel zvítězil po vzdání soupeře"]

1. d4 {[%clk 0:03:00.9]} 1... d5 {[%clk 0:02:59]} 2. c4 {[%clk 0:03:00.9]} 2...
Nf6 {[%clk 0:02:57.6]} 3. Nc3 {[%clk 0:03:01.5]} 3... e6 {[%clk 0:02:57.2]} 4.
cxd5 {[%clk 0:03:01.1]} 4... Nxd5 {[%clk 0:02:56.5]} 5. e4 {[%clk 0:03:01.1]}
5... Nxc3 {[%clk 0:02:55]} 6. bxc3 {[%clk 0:03:02]} 6... Nc6 {[%clk 0:02:55]} 7.
Nf3 {[%clk 0:03:01.9]} 7... b6 {[%clk 0:02:53.6]} 8. Bb5 {[%clk 0:03:00.4]} 8...
Bb7 {[%clk 0:02:51.6]} 9. d5 {[%clk 0:02:59.6]} 9... exd5 {[%clk 0:02:50.7]} 10.
exd5 {[%clk 0:02:59.9]} 10... Qe7+ {[%clk 0:02:49.8]} 11. Qe2 {[%clk 0:02:59.6]}
11... Qxe2+ {[%clk 0:02:47]} 12. Kxe2 {[%clk 0:03:00.5]} 12... O-O-O {[%clk
0:02:39.5]} 13. Bxc6 {[%clk 0:02:59.4]} 13... Bxc6 {[%clk 0:02:39.2]} 14. dxc6
{[%clk 0:03:00.3]} 14... Bc5 {[%clk 0:02:36.8]} 15. Be3 {[%clk 0:03:00.4]} 15...
Rhe8 {[%clk 0:02:35.7]} 16. Rhd1 {[%clk 0:03:00.2]} 16... Bxe3 {[%clk
0:02:29.6]} 17. fxe3 {[%clk 0:03:00.1]} 17... Re6 {[%clk 0:02:25.2]} 18. Rxd8+
{[%clk 0:02:57.4]} 18... Kxd8 {[%clk 0:02:25]} 19. Nd4 {[%clk 0:02:58.1]} 19...
Rg6 {[%clk 0:02:23.1]} 20. Kf2 {[%clk 0:02:55.4]} 20... Rf6+ {[%clk 0:02:16.6]}
21. Ke2 {[%clk 0:02:55.5]} 21... h5 {[%clk 0:02:11.7]} 22. a4 {[%clk 0:02:54.4]}
22... g5 {[%clk 0:02:06.2]} 23. a5 {[%clk 0:02:53.8]} 23... Rd6 {[%clk
0:02:01.7]} 24. axb6 {[%clk 0:02:53]} 24... axb6 {[%clk 0:02:00.8]} 25. Ra8+
{[%clk 0:02:52.1]} 25... Ke7 {[%clk 0:01:59.3]} 26. Rc8 {[%clk 0:02:52.1]} 26...
Kf6 {[%clk 0:01:52.6]} 27. Rxc7 {[%clk 0:02:51.9]} 27... g4 {[%clk 0:01:46]} 28.
Rb7 {[%clk 0:02:49.4]} 1-0

[Event "Betsys MČR v online bleskovém šachu 2021"]
[Site "Chess.com"]
[Date "2021.04.17"]
[Round "2"]
[White "Saygram"]
[Black "Vitana"]
[Result "1-0"]
[WhiteElo "2399"]
[BlackElo "2007"]
[TimeControl "180+1"]
[EndTime "9:13:13 PDT"]
[Termination "Uživatel Saygram zvítězil po vzdání soupeře"]

1. e4 {[%clk 0:03:00.9]} 1... e6 {[%clk 0:02:59.9]} 2. d4 {[%clk 0:03:00.6]}
2... d5 {[%clk 0:03:00.8]} 3. Nd2 {[%clk 0:03:00.7]} 3... dxe4 {[%clk
0:03:00.1]} 4. Nxe4 {[%clk 0:03:00.5]} 4... Nd7 {[%clk 0:03:01]} 5. Nf3 {[%clk
0:02:58.6]} 5... Ngf6 {[%clk 0:03:01.9]} 6. Nxf6+ {[%clk 0:02:58.5]} 6... Nxf6
{[%clk 0:02:59.8]} 7. g3 {[%clk 0:02:58.5]} 7... Be7 {[%clk 0:02:59.5]} 8. Bg2
{[%clk 0:02:58.7]} 8... O-O {[%clk 0:03:00]} 9. O-O {[%clk 0:02:59.3]} 9... Rb8
{[%clk 0:02:59.3]} 10. Ne5 {[%clk 0:02:56.9]} 10... Bd7 {[%clk 0:02:56]} 11. c4
{[%clk 0:02:47.5]} 11... b6 {[%clk 0:02:55.3]} 12. Bf4 {[%clk 0:02:28.5]} 12...
Rc8 {[%clk 0:02:48.2]} 13. Bb7 {[%clk 0:02:04.9]} 13... Rb8 {[%clk 0:02:44.7]}
14. Bc6 {[%clk 0:02:05.2]} 14... Qe8 {[%clk 0:02:29.3]} 15. Nxd7 {[%clk
0:01:57.4]} 15... Nxd7 {[%clk 0:02:28.9]} 16. Qa4 {[%clk 0:01:53.2]} 16... b5
{[%clk 0:02:09]} 17. Bxb5 {[%clk 0:01:50.6]} 1-0

[Event "Betsys MČR v online bleskovém šachu 2021"]
[Site "Chess.com"]
[Date "2021.04.17"]
[Round "2"]
[White "Honza_13"]
[Black "adambelaska"]
[Result "1-0"]
[WhiteElo "1857"]
[BlackElo "1437"]
[TimeControl "180+1"]
[EndTime "9:13:18 PDT"]
[Termination "Uživatel Honza_13 zvítězil po vzdání soupeře"]

1. Nf3 {[%clk 0:02:39.1]} 1... d5 {[%clk 0:02:58.6]} 2. g3 {[%clk 0:02:36.2]}
2... Nf6 {[%clk 0:02:57.3]} 3. Bg2 {[%clk 0:02:34.9]} 3... Nc6 {[%clk
0:02:50.2]} 4. d4 {[%clk 0:02:33.5]} 4... g6 {[%clk 0:02:47.3]} 5. O-O {[%clk
0:02:31.6]} 5... Bg7 {[%clk 0:02:46.8]} 6. c4 {[%clk 0:02:20.6]} 6... O-O {[%clk
0:02:41.8]} 7. Nc3 {[%clk 0:02:16]} 7... e6 {[%clk 0:02:40.1]} 8. Re1 {[%clk
0:02:11.5]} 8... Bd7 {[%clk 0:02:34.8]} 9. Bg5 {[%clk 0:02:10.4]} 9... Qe7
{[%clk 0:02:31.9]} 10. cxd5 {[%clk 0:02:08]} 10... exd5 {[%clk 0:02:30.5]} 11.
Nxd5 {[%clk 0:02:06.5]} 11... Qe6 {[%clk 0:02:28.4]} 12. Nxc7 {[%clk 0:02:02.5]}
12... Qd6 {[%clk 0:02:25]} 13. Nxa8 {[%clk 0:01:51.5]} 13... Rxa8 {[%clk
0:02:25.9]} 14. Bf4 {[%clk 0:01:50]} 14... Qe6 {[%clk 0:02:24.9]} 15. Ne5 {[%clk
0:01:46.7]} 15... Nxe5 {[%clk 0:02:23.2]} 16. dxe5 {[%clk 0:01:39.3]} 16... Nd5
{[%clk 0:02:22]} 17. Qxd5 {[%clk 0:01:37.9]} 17... Qxd5 {[%clk 0:02:21.8]} 18.
Bxd5 {[%clk 0:01:38.8]} 1-0

[Event "Betsys MČR v online bleskovém šachu 2021"]
[Site "Chess.com"]
[Date "2021.04.17"]
[Round "2"]
[White "Lunaticx"]
[Black "Innerz98"]
[Result "1-0"]
[WhiteElo "3005"]
[BlackElo "2105"]
[TimeControl "180+1"]
[EndTime "9:13:27 PDT"]
[Termination "Uživatel Lunaticx zvítězil po vzdání soupeře"]

1. e4 {[%clk 0:03:00.9]} 1... e5 {[%clk 0:02:59.8]} 2. Nf3 {[%clk 0:03:00.8]}
2... Nf6 {[%clk 0:03:00.1]} 3. Nxe5 {[%clk 0:02:56.7]} 3... d6 {[%clk
0:03:00.2]} 4. Nf3 {[%clk 0:02:56.8]} 4... Nxe4 {[%clk 0:03:00.2]} 5. Bd3 {[%clk
0:02:57.5]} 5... Nc5 {[%clk 0:02:58.3]} 6. Be2 {[%clk 0:02:57.6]} 6... Be7
{[%clk 0:02:58.2]} 7. d4 {[%clk 0:02:55.6]} 7... Ne4 {[%clk 0:02:58.5]} 8. O-O
{[%clk 0:02:55.1]} 8... d5 {[%clk 0:02:58.7]} 9. c4 {[%clk 0:02:52.6]} 9... O-O
{[%clk 0:02:56.5]} 10. Nc3 {[%clk 0:02:52.7]} 10... Nxc3 {[%clk 0:02:51.8]} 11.
bxc3 {[%clk 0:02:53.6]} 11... c6 {[%clk 0:02:52.3]} 12. Qb3 {[%clk 0:02:50.2]}
12... Qb6 {[%clk 0:02:35.4]} 13. Re1 {[%clk 0:02:47.4]} 13... dxc4 {[%clk
0:02:27.5]} 14. Bxc4 {[%clk 0:02:46.5]} 14... Qxb3 {[%clk 0:02:27.3]} 15. axb3
{[%clk 0:02:44.2]} 15... Bf6 {[%clk 0:02:22.5]} 16. Bf4 {[%clk 0:02:39.3]} 16...
Bf5 {[%clk 0:02:18.4]} 17. h3 {[%clk 0:02:37.2]} 17... Nd7 {[%clk 0:02:15.3]}
18. g4 {[%clk 0:02:36.7]} 18... Bg6 {[%clk 0:02:13.6]} 19. g5 {[%clk 0:02:32.3]}
19... Bh5 {[%clk 0:01:57.2]} 20. Kg2 {[%clk 0:02:25.2]} 20... Bd8 {[%clk
0:01:48.6]} 21. Bd6 {[%clk 0:02:24.7]} 21... Bb6 {[%clk 0:01:48.6]} 22. Bxf8
{[%clk 0:02:23.5]} 22... Nxf8 {[%clk 0:01:49.5]} 23. Ne5 {[%clk 0:02:21]} 23...
Ng6 {[%clk 0:01:46.6]} 24. Bxf7+ {[%clk 0:02:19.8]} 24... Kf8 {[%clk 0:01:45.6]}
25. Bxg6 {[%clk 0:02:15.2]} 1-0

[Event "Betsys MČR v online bleskovém šachu 2021"]
[Site "Chess.com"]
[Date "2021.04.17"]
[Round "2"]
[White "Hroch_Hippo"]
[Black "Tobish"]
[Result "0-1"]
[WhiteElo "1078"]
[BlackElo "1666"]
[TimeControl "180+1"]
[EndTime "9:13:29 PDT"]
[Termination "Uživatel Tobish zvítězil po vzdání soupeře"]

1. e4 {[%clk 0:03:00.6]} 1... c5 {[%clk 0:02:59.6]} 2. Nf3 {[%clk 0:03:00]} 2...
Nc6 {[%clk 0:02:59.8]} 3. Bc4 {[%clk 0:03:00.3]} 3... e6 {[%clk 0:02:59.1]} 4.
Nc3 {[%clk 0:02:59.2]} 4... Nge7 {[%clk 0:02:57]} 5. O-O {[%clk 0:02:59.6]} 5...
d5 {[%clk 0:02:57.1]} 6. exd5 {[%clk 0:02:59.4]} 6... exd5 {[%clk 0:02:57.2]} 7.
Bb5 {[%clk 0:02:58.4]} 7... g6 {[%clk 0:02:55.6]} 8. Bxc6+ {[%clk 0:02:59]} 8...
bxc6 {[%clk 0:02:55.1]} 9. Re1 {[%clk 0:02:56.1]} 9... Bg7 {[%clk 0:02:55.3]}
10. Na4 {[%clk 0:02:49.6]} 10... c4 {[%clk 0:02:47.4]} 11. c3 {[%clk 0:02:47.1]}
11... O-O {[%clk 0:02:42.1]} 12. Nd4 {[%clk 0:02:45.3]} 12... Bd7 {[%clk
0:02:29.1]} 13. Nc5 {[%clk 0:02:41.3]} 13... Re8 {[%clk 0:02:14.3]} 14. Nxd7
{[%clk 0:02:39.8]} 14... Qxd7 {[%clk 0:02:13.6]} 15. b3 {[%clk 0:02:39.5]} 15...
Nf5 {[%clk 0:02:12.8]} 16. Nxf5 {[%clk 0:02:39]} 16... Qxf5 {[%clk 0:02:11.8]}
17. Rxe8+ {[%clk 0:02:38.3]} 17... Rxe8 {[%clk 0:02:10.9]} 18. bxc4 {[%clk
0:02:35.9]} 18... Qe4 {[%clk 0:02:06.9]} 19. Kf1 {[%clk 0:02:32.3]} 19... Qxc4+
{[%clk 0:02:06.1]} 20. Kg1 {[%clk 0:02:28.9]} 20... Qe4 {[%clk 0:02:03.8]} 21.
Kf1 {[%clk 0:02:27.8]} 21... Be5 {[%clk 0:02:03.7]} 22. f3 {[%clk 0:02:25.6]}
22... Qd3+ {[%clk 0:02:02]} 23. Kg1 {[%clk 0:02:22.7]} 23... Bxc3 {[%clk
0:01:58]} 24. Ba3 {[%clk 0:02:20.2]} 24... Bxd2 {[%clk 0:01:51]} 25. Rb1 {[%clk
0:02:16.8]} 25... Re1+ {[%clk 0:01:49.7]} 26. Qxe1 {[%clk 0:02:15.1]} 26... Bxe1
{[%clk 0:01:49.8]} 27. Rxe1 {[%clk 0:02:14.8]} 27... Qxa3 {[%clk 0:01:49.9]} 0-1

[Event "Betsys MČR v online bleskovém šachu 2021"]
[Site "Chess.com"]
[Date "2021.04.17"]
[Round "2"]
[White "Tomasbezdek07"]
[Black "Michelangelo111"]
[Result "0-1"]
[WhiteElo "1685"]
[BlackElo "2128"]
[TimeControl "180+1"]
[EndTime "9:13:34 PDT"]
[Termination "Uživatel Michelangelo111 zvítězil po vzdání soupeře"]

1. e4 {[%clk 0:03:00.9]} 1... c5 {[%clk 0:02:57.9]} 2. c3 {[%clk 0:03:00.2]}
2... d5 {[%clk 0:02:57.4]} 3. exd5 {[%clk 0:03:00]} 3... Qxd5 {[%clk 0:02:58.3]}
4. d4 {[%clk 0:03:00.3]} 4... cxd4 {[%clk 0:02:59.2]} 5. cxd4 {[%clk 0:03:00.4]}
5... e5 {[%clk 0:02:58.3]} 6. Nf3 {[%clk 0:02:56]} 6... exd4 {[%clk 0:02:57.2]}
7. Qxd4 {[%clk 0:02:53.8]} 7... Qxd4 {[%clk 0:02:56.1]} 8. Nxd4 {[%clk
0:02:53.8]} 8... Bc5 {[%clk 0:02:57]} 9. Nb3 {[%clk 0:02:52.5]} 9... Bb6 {[%clk
0:02:55.8]} 10. Bb5+ {[%clk 0:02:52.1]} 10... Bd7 {[%clk 0:02:52.2]} 11. Bxd7+
{[%clk 0:02:50.8]} 11... Nxd7 {[%clk 0:02:53.1]} 12. O-O {[%clk 0:02:50.9]}
12... O-O-O {[%clk 0:02:42.9]} 13. Nc3 {[%clk 0:02:45.6]} 13... Ngf6 {[%clk
0:02:39.3]} 14. Bf4 {[%clk 0:02:44]} 14... Nc5 {[%clk 0:02:32.7]} 15. Nxc5
{[%clk 0:02:39.1]} 15... Bxc5 {[%clk 0:02:33.6]} 16. Na4 {[%clk 0:02:38.7]}
16... Bd6 {[%clk 0:02:29.1]} 17. Bg5 {[%clk 0:02:21.5]} 17... Be5 {[%clk
0:02:18.3]} 18. Rac1+ {[%clk 0:02:18]} 18... Kb8 {[%clk 0:02:16.8]} 19. Rc2
{[%clk 0:02:12.9]} 19... h6 {[%clk 0:02:06.1]} 20. Bh4 {[%clk 0:02:10.8]} 20...
Rd4 {[%clk 0:01:54.1]} 21. Bg3 {[%clk 0:02:07.7]} 21... Bxg3 {[%clk 0:01:51.9]}
22. hxg3 {[%clk 0:02:05.6]} 22... Rxa4 {[%clk 0:01:50.5]} 0-1

[Event "Betsys MČR v online bleskovém šachu 2021"]
[Site "Chess.com"]
[Date "2021.04.17"]
[Round "2"]
[White "TomasOrnet1"]
[Black "Rozmetal"]
[Result "0-1"]
[WhiteElo "1508"]
[BlackElo "2121"]
[TimeControl "180+1"]
[EndTime "9:13:40 PDT"]
[Termination "Uživatel Rozmetal zvítězil po vzdání soupeře"]

1. e4 {[%clk 0:02:59.6]} 1... c5 {[%clk 0:02:58.2]} 2. Bc4 {[%clk 0:02:58.3]}
2... e6 {[%clk 0:02:57.5]} 3. Nf3 {[%clk 0:02:57]} 3... Nc6 {[%clk 0:02:56.4]}
4. d3 {[%clk 0:02:56.5]} 4... Nf6 {[%clk 0:02:56.2]} 5. Bf4 {[%clk 0:02:52.3]}
5... d5 {[%clk 0:02:52.7]} 6. exd5 {[%clk 0:02:51.6]} 6... Nxd5 {[%clk
0:02:52.2]} 7. Bxd5 {[%clk 0:02:51]} 7... Qxd5 {[%clk 0:02:50.4]} 8. Nc3 {[%clk
0:02:48.4]} 8... Qf5 {[%clk 0:02:49.8]} 9. Bg3 {[%clk 0:02:42.5]} 9... a6 {[%clk
0:02:48.9]} 10. O-O {[%clk 0:02:40.9]} 10... Be7 {[%clk 0:02:47.9]} 11. Qd2
{[%clk 0:02:34.3]} 11... O-O {[%clk 0:02:46.7]} 12. Qf4 {[%clk 0:02:33.6]} 12...
Qxf4 {[%clk 0:02:45.7]} 13. Bxf4 {[%clk 0:02:33]} 13... b5 {[%clk 0:02:45.7]}
14. Ne4 {[%clk 0:02:31.5]} 14... Rd8 {[%clk 0:02:43.4]} 15. Rad1 {[%clk
0:02:28.3]} 15... Bb7 {[%clk 0:02:43.6]} 16. Bg5 {[%clk 0:02:21.9]} 16... f6
{[%clk 0:02:42.7]} 17. Bh4 {[%clk 0:02:20.5]} 17... Rd7 {[%clk 0:02:38.1]} 18.
Bg3 {[%clk 0:02:06.4]} 18... Rad8 {[%clk 0:02:36.1]} 19. h3 {[%clk 0:02:04.5]}
19... e5 {[%clk 0:02:36]} 20. Nh2 {[%clk 0:02:01.2]} 20... Nd4 {[%clk
0:02:30.1]} 21. Rd2 {[%clk 0:01:55.1]} 21... f5 {[%clk 0:02:20.1]} 22. Bxe5
{[%clk 0:01:39.6]} 22... fxe4 {[%clk 0:02:18.8]} 23. Bxd4 {[%clk 0:01:39.4]}
23... Rxd4 {[%clk 0:02:17.6]} 0-1

[Event "Betsys MČR v online bleskovém šachu 2021"]
[Site "Chess.com"]
[Date "2021.04.17"]
[Round "2"]
[White "JindrichT_JR_CZE"]
[Black "Hanicka1517"]
[Result "0-1"]
[WhiteElo "912"]
[BlackElo "1609"]
[TimeControl "180+1"]
[EndTime "9:13:41 PDT"]
[Termination "Uživatel Hanicka1517 zvítězil matem"]

1. e4 {[%clk 0:03:00.9]} 1... e6 {[%clk 0:03:00.3]} 2. d4 {[%clk 0:02:58.5]}
2... d5 {[%clk 0:03:00.5]} 3. e5 {[%clk 0:02:56.9]} 3... c5 {[%clk 0:03:00.8]}
4. c3 {[%clk 0:02:55.2]} 4... Nc6 {[%clk 0:03:01]} 5. Bb5 {[%clk 0:02:49.9]}
5... Bd7 {[%clk 0:03:00.2]} 6. Bxc6 {[%clk 0:02:49.3]} 6... Bxc6 {[%clk
0:03:00.1]} 7. Nf3 {[%clk 0:02:49.1]} 7... cxd4 {[%clk 0:02:51.8]} 8. cxd4
{[%clk 0:02:47.2]} 8... Ne7 {[%clk 0:02:51.6]} 9. Be3 {[%clk 0:02:34.1]} 9...
Nf5 {[%clk 0:02:50.1]} 10. O-O {[%clk 0:02:16.3]} 10... Be7 {[%clk 0:02:47.8]}
11. Nc3 {[%clk 0:02:13.6]} 11... O-O {[%clk 0:02:47]} 12. Re1 {[%clk 0:02:13.1]}
12... Nxe3 {[%clk 0:02:43.4]} 13. fxe3 {[%clk 0:02:12.4]} 13... f6 {[%clk
0:02:42]} 14. Rc1 {[%clk 0:02:07.6]} 14... fxe5 {[%clk 0:02:39.2]} 15. Nxe5
{[%clk 0:02:06.2]} 15... Rc8 {[%clk 0:02:34.7]} 16. Nxc6 {[%clk 0:02:02.1]}
16... Rxc6 {[%clk 0:02:33.3]} 17. Nb5 {[%clk 0:02:00.9]} 17... a6 {[%clk
0:02:27.5]} 18. Rxc6 {[%clk 0:01:49.6]} 18... bxc6 {[%clk 0:02:28.4]} 19. Nc3
{[%clk 0:01:48.5]} 19... c5 {[%clk 0:02:23.4]} 20. dxc5 {[%clk 0:01:46.2]} 20...
Bxc5 {[%clk 0:02:23.5]} 21. Na4 {[%clk 0:01:44]} 21... Ba7 {[%clk 0:02:22.6]}
22. Qg4 {[%clk 0:01:31.3]} 22... Qf6 {[%clk 0:02:20.9]} 23. Kh1 {[%clk
0:01:27.8]} 23... Qf1+ {[%clk 0:02:19.9]} 24. Rxf1 {[%clk 0:01:24.2]} 24...
Rxf1# {[%clk 0:02:20.8]} 0-1

[Event "Betsys MČR v online bleskovém šachu 2021"]
[Site "Chess.com"]
[Date "2021.04.17"]
[Round "2"]
[White "DiscoSTU666"]
[Black "TerezaRodshtein"]
[Result "1-0"]
[WhiteElo "1889"]
[BlackElo "2180"]
[TimeControl "180+1"]
[EndTime "9:13:45 PDT"]
[Termination "Uživatel DiscoSTU666 zvítězil po vzdání soupeře"]

1. e4 {[%clk 0:03:00.9]} 1... e5 {[%clk 0:02:58.6]} 2. Nf3 {[%clk 0:03:00.3]}
2... Nc6 {[%clk 0:02:58.2]} 3. Bc4 {[%clk 0:03:00.8]} 3... Bc5 {[%clk
0:02:56.3]} 4. O-O {[%clk 0:02:58.7]} 4... Nf6 {[%clk 0:02:54.5]} 5. d4 {[%clk
0:02:59.2]} 5... Bxd4 {[%clk 0:02:48.6]} 6. Nxd4 {[%clk 0:02:58.3]} 6... Nxd4
{[%clk 0:02:48.6]} 7. f4 {[%clk 0:02:57.7]} 7... d6 {[%clk 0:02:46.7]} 8. fxe5
{[%clk 0:02:57.5]} 8... dxe5 {[%clk 0:02:46.7]} 9. Bg5 {[%clk 0:02:58]} 9... Be6
{[%clk 0:02:44.5]} 10. Na3 {[%clk 0:02:57]} 10... Qe7 {[%clk 0:02:20.4]} 11. c3
{[%clk 0:02:13.7]} 11... Bg4 {[%clk 0:01:38.5]} 12. Bxf6 {[%clk 0:02:01.1]}
12... Bxd1 {[%clk 0:01:31.5]} 13. Bxe7 {[%clk 0:02:00.4]} 13... Ne2+ {[%clk
0:01:28]} 14. Bxe2 {[%clk 0:01:57.8]} 14... Bxe2 {[%clk 0:01:28.9]} 15. Rfe1
{[%clk 0:01:56.4]} 1-0

[Event "Betsys MČR v online bleskovém šachu 2021"]
[Site "Chess.com"]
[Date "2021.04.17"]
[Round "2"]
[White "PremetFugas"]
[Black "petiva3"]
[Result "1-0"]
[WhiteElo "2112"]
[BlackElo "1347"]
[TimeControl "180+1"]
[EndTime "9:14:05 PDT"]
[Termination "Uživatel PremetFugas zvítězil po vzdání soupeře"]

1. e4 {[%clk 0:03:00.9]} 1... e5 {[%clk 0:02:59.8]} 2. Nf3 {[%clk 0:02:59.9]}
2... Nc6 {[%clk 0:02:59.1]} 3. d4 {[%clk 0:02:59.7]} 3... exd4 {[%clk
0:02:58.8]} 4. Nxd4 {[%clk 0:02:59.7]} 4... Bc5 {[%clk 0:02:59]} 5. Be3 {[%clk
0:02:59.2]} 5... Qf6 {[%clk 0:02:58.3]} 6. c3 {[%clk 0:02:59]} 6... Nge7 {[%clk
0:02:57.7]} 7. Bc4 {[%clk 0:02:55.8]} 7... O-O {[%clk 0:02:56.7]} 8. O-O {[%clk
0:02:54.2]} 8... Nxd4 {[%clk 0:02:51.4]} 9. cxd4 {[%clk 0:02:52.8]} 9... Bb6
{[%clk 0:02:48.5]} 10. Nc3 {[%clk 0:02:49.4]} 10... d6 {[%clk 0:02:37]} 11. Kh1
{[%clk 0:02:46.3]} 11... Be6 {[%clk 0:02:34.7]} 12. d5 {[%clk 0:02:42.9]} 12...
Bxe3 {[%clk 0:02:32.5]} 13. fxe3 {[%clk 0:02:39.3]} 13... Qh6 {[%clk 0:02:24.2]}
14. dxe6 {[%clk 0:02:37.9]} 14... f6 {[%clk 0:02:12.8]} 15. Qf3 {[%clk
0:02:36.1]} 15... Kh8 {[%clk 0:02:09.1]} 16. Nd5 {[%clk 0:02:35.6]} 16... Nxd5
{[%clk 0:02:06.7]} 17. exd5 {[%clk 0:02:35.2]} 17... Rae8 {[%clk 0:02:03.1]} 18.
Qf4 {[%clk 0:02:34.5]} 18... Qg6 {[%clk 0:01:58.4]} 19. Rad1 {[%clk 0:02:33.5]}
19... h5 {[%clk 0:01:53.7]} 20. Bd3 {[%clk 0:02:32.9]} 20... Qg4 {[%clk
0:01:48.7]} 21. Qxg4 {[%clk 0:02:32.5]} 21... hxg4 {[%clk 0:01:49.6]} 22. Bg6
{[%clk 0:02:32.2]} 22... Rc8 {[%clk 0:01:46.5]} 23. Rf5 {[%clk 0:02:31.5]} 23...
c6 {[%clk 0:01:44.7]} 24. dxc6 {[%clk 0:02:28.2]} 24... Rxc6 {[%clk 0:01:45.6]}
25. Rh5+ {[%clk 0:02:27]} 25... Kg8 {[%clk 0:01:44.8]} 26. Bh7+ {[%clk
0:02:26.3]} 26... Kh8 {[%clk 0:01:44.2]} 27. Be4+ {[%clk 0:02:25.9]} 27... Kg8
{[%clk 0:01:44.2]} 28. Bxc6 {[%clk 0:02:23.4]} 28... bxc6 {[%clk 0:01:45.1]} 29.
Rxd6 {[%clk 0:02:22.8]} 29... Rc8 {[%clk 0:01:42.4]} 30. Rc5 {[%clk 0:02:22.1]}
30... Kf8 {[%clk 0:01:40.7]} 31. Rdxc6 {[%clk 0:02:21.7]} 31... Rxc6 {[%clk
0:01:40.8]} 32. Rxc6 {[%clk 0:02:21.8]} 32... Ke7 {[%clk 0:01:41]} 33. Rc7+
{[%clk 0:02:22.1]} 33... Kxe6 {[%clk 0:01:41.1]} 34. Rxa7 {[%clk 0:02:22.4]}
34... Ke5 {[%clk 0:01:40.2]} 35. Rxg7 {[%clk 0:02:22.2]} 35... Ke4 {[%clk
0:01:40.3]} 36. Rxg4+ {[%clk 0:02:22]} 36... Kxe3 {[%clk 0:01:40.4]} 37. Rg6
{[%clk 0:02:22.2]} 37... f5 {[%clk 0:01:40]} 38. Rf6 {[%clk 0:02:22.3]} 38... f4
{[%clk 0:01:40]} 39. Rxf4 {[%clk 0:02:22.1]} 39... Kxf4 {[%clk 0:01:40.6]} 40.
a4 {[%clk 0:02:22.1]} 40... Ke3 {[%clk 0:01:39.6]} 41. a5 {[%clk 0:02:22.1]} 1-0

[Event "Betsys MČR v online bleskovém šachu 2021"]
[Site "Chess.com"]
[Date "2021.04.17"]
[Round "2"]
[White "vaclavbelaska"]
[Black "kol340"]
[Result "0-1"]
[WhiteElo "1403"]
[BlackElo "1827"]
[TimeControl "180+1"]
[EndTime "9:14:13 PDT"]
[Termination "Uživatel kol340 zvítězil po vzdání soupeře"]

1. e4 {[%clk 0:02:57.5]} 1... c6 {[%clk 0:02:55.8]} 2. Nc3 {[%clk 0:02:55.1]}
2... d5 {[%clk 0:02:56.7]} 3. Nf3 {[%clk 0:02:54.6]} 3... dxe4 {[%clk
0:02:52.6]} 4. Nxe4 {[%clk 0:02:53.7]} 4... Nf6 {[%clk 0:02:53.1]} 5. Nxf6+
{[%clk 0:02:50.2]} 5... gxf6 {[%clk 0:02:54]} 6. d4 {[%clk 0:02:49.5]} 6... Bf5
{[%clk 0:02:54.1]} 7. Bd3 {[%clk 0:02:47.6]} 7... Bg6 {[%clk 0:02:53.4]} 8. O-O
{[%clk 0:02:43.5]} 8... e6 {[%clk 0:02:52]} 9. Bxg6 {[%clk 0:02:39.5]} 9... hxg6
{[%clk 0:02:51.4]} 10. Qd3 {[%clk 0:02:32.9]} 10... Bd6 {[%clk 0:02:51.3]} 11.
h3 {[%clk 0:02:26.1]} 11... Qc7 {[%clk 0:02:50.6]} 12. Qb3 {[%clk 0:02:20.4]}
12... Nd7 {[%clk 0:02:49.9]} 13. Re1 {[%clk 0:02:18]} 13... O-O {[%clk 0:02:49]}
14. Bh6 {[%clk 0:02:09.1]} 14... Rfe8 {[%clk 0:02:48]} 15. Nh4 {[%clk 0:02:00]}
15... f5 {[%clk 0:02:45.6]} 16. Re2 {[%clk 0:01:52.4]} 16... Be7 {[%clk
0:02:45.6]} 17. Nf3 {[%clk 0:01:47.9]} 17... Bf6 {[%clk 0:02:45.7]} 18. Rae1
{[%clk 0:01:38.8]} 18... Nb6 {[%clk 0:02:44.1]} 19. c3 {[%clk 0:01:32.9]} 19...
Rad8 {[%clk 0:02:43.6]} 20. Bg5 {[%clk 0:01:31.5]} 20... Qe7 {[%clk 0:02:41.7]}
21. Bxf6 {[%clk 0:01:23.1]} 21... Qxf6 {[%clk 0:02:42.6]} 22. Ne5 {[%clk
0:01:15.2]} 22... Nd7 {[%clk 0:02:41.7]} 23. Nxd7 {[%clk 0:01:04.2]} 23... Rxd7
{[%clk 0:02:42.6]} 24. Qc2 {[%clk 0:01:01.3]} 24... b6 {[%clk 0:02:42.1]} 25.
Qd3 {[%clk 0:00:57.1]} 25... c5 {[%clk 0:02:42.1]} 26. Qf3 {[%clk 0:00:53.8]}
26... cxd4 {[%clk 0:02:41.2]} 27. Qc6 {[%clk 0:00:47.6]} 27... Red8 {[%clk
0:02:37.8]} 28. c4 {[%clk 0:00:46.1]} 0-1